Workbook

Sheet START HERE
A1: SMALL BUSINESS OPERATIONS PACK | B1: SMALL BUSINESS OPERATIONS PACK | C1: SMALL BUSINESS OPERATIONS PACK | D1: SMALL BUSINESS OPERATIONS PACK | E1: SMALL BUSINESS OPERATIONS PACK | F1: SMALL BUSINESS OPERATIONS PACK | G1: SMALL BUSINESS OPERATIONS PACK | H1: SMALL BUSINESS OPERATIONS PACK
A2: Creative Carousel Collective • Excel Automation • Version 1.0 | B2: Creative Carousel Collective • Excel Automation • Version 1.0 | C2: Creative Carousel Collective • Excel Automation • Version 1.0 | D2: Creative Carousel Collective • Excel Automation • Version 1.0 | E2: Creative Carousel Collective • Excel Automation • Version 1.0 | F2: Creative Carousel Collective • Excel Automation • Version 1.0 | G2: Creative Carousel Collective • Excel Automation • Version 1.0 | H2: Creative Carousel Collective • Excel Automation • Version 1.0
A4: 1. SET UP YOUR BUSINESS | B4: 1. SET UP YOUR BUSINESS | C4: 1. SET UP YOUR BUSINESS | D4: 1. SET UP YOUR BUSINESS | E4: 1. SET UP YOUR BUSINESS | F4: 1. SET UP YOUR BUSINESS | G4: 1. SET UP YOUR BUSINESS | H4: 1. SET UP YOUR BUSINESS
A5: Business name | B5: Brightside Studio | D5: HOW TO USE THIS PACK
A6: Owner / manager | B6: Jordan Lee | D6: 1 Replace the yellow sample inputs with your own business details.
A7: Starting cash balance | B7: $25,000.00 | D7: 2 Add sales, expenses, and invoices to the matching tabs.
A8: Estimated tax rate | B8: 7.0% | D8: 3 Review DASHBOARD and CASH FLOW—both update automatically.
A9: Currency | B9: USD | D9: 4 Keep formula columns intact. Add new rows inside the reserved areas.
A10: Reporting year | B10: 2026 | D10: 5 Check the CHECKS tab before sharing your monthly results.
A13: WHAT'S AUTOMATED | B13: WHAT'S AUTOMATED | C13: WHAT'S AUTOMATED | D13: WHAT'S AUTOMATED | E13: WHAT'S AUTOMATED | F13: WHAT'S AUTOMATED | G13: WHAT'S AUTOMATED | H13: WHAT'S AUTOMATED
A14: Sales | B14: Revenue totals | C14: Expenses | D14: Category totals | E14: Invoices | F14: Balances due | G14: Cash flow | H14: Monthly roll-forward
A15: Enter quantity + price | B15: Calculated instantly | C15: Enter purchases | D15: Dashboard updates | E15: Track payments | F15: Status + overdue days | G15: Starting cash | H15: Ending cash
A16: Customer history | B16: Monthly trend | C16: Tax-ready records | D16: Profit view | E16: Due dates | F16: Collections list | G16: Cash in/out | H16: 12-month outlook
A17: 200 entry rows | B17: No manual totals | C17: 200 entry rows | D17: No pivot refresh | E17: 200 entry rows | F17: No status typing | G17: Formula-driven | H17: Always reconciled
A18: Yellow cells = inputs | B18: White cells = formulas | C18: Pink = attention | D18: Green = healthy | E18: Blue = navigation | F18: Black = headings

Sheet DASHBOARD
A1: BUSINESS DASHBOARD | B1: BUSINESS DASHBOARD | C1: BUSINESS DASHBOARD | D1: BUSINESS DASHBOARD | E1: BUSINESS DASHBOARD | F1: BUSINESS DASHBOARD | G1: BUSINESS DASHBOARD | H1: BUSINESS DASHBOARD
A2: Your business at a glance • Formula-driven from the entry tabs | B2: Your business at a glance • Formula-driven from the entry tabs | C2: Your business at a glance • Formula-driven from the entry tabs | D2: Your business at a glance • Formula-driven from the entry tabs | E2: Your business at a glance • Formula-driven from the entry tabs | F2: Your business at a glance • Formula-driven from the entry tabs | G2: Your business at a glance • Formula-driven from the entry tabs | H2: Your business at a glance • Formula-driven from the entry tabs
A4: TOTAL REVENUE | C4: TOTAL EXPENSES | E4: NET PROFIT | G4: OUTSTANDING
A5: =SUM('SALES'!$H$6:$H$205) -> $17,325.00 | C5: =SUM('EXPENSES'!$F$6:$F$205) -> $6,335.00 | E5: =A5-C5 -> $10,990.00 | G5: =SUM('INVOICES'!$G$6:$G$205) -> $4,325.00
A10: OPERATING METRICS | B10: VALUE
A11: Profit margin | B11: =IFERROR(E5/A5,0) -> 63.4%
A12: Open invoices | B12: =COUNTIF('INVOICES'!$H$6:$H$205,"Open") -> 0
A13: Overdue invoices | B13: =COUNTIF('INVOICES'!$H$6:$H$205,"Overdue") -> 4
A14: Ending cash | B14: ='CASH FLOW'!$E$17 -> $35,990.00
A16: Month | B16: Revenue | C16: Expenses | D16: Profit
A17: ='CASH FLOW'!A6 -> 2026-01-01 | B17: ='CASH FLOW'!C6 -> $3,300.00 | C17: ='CASH FLOW'!D6 -> $389.00 | D17: =B17-C17 -> $2,911.00 | E17: Jan
A18: ='CASH FLOW'!A7 -> 2026-02-01 | B18: ='CASH FLOW'!C7 -> $2,275.00 | C18: ='CASH FLOW'!D7 -> $1,046.00 | D18: =B18-C18 -> $1,229.00 | E18: Feb
A19: ='CASH FLOW'!A8 -> 2026-03-01 | B19: ='CASH FLOW'!C8 -> $2,225.00 | C19: ='CASH FLOW'!D8 -> $940.00 | D19: =B19-C19 -> $1,285.00 | E19: Mar
A20: ='CASH FLOW'!A9 -> 2026-04-01 | B20: ='CASH FLOW'!C9 -> $3,500.00 | C20: ='CASH FLOW'!D9 -> $1,550.00 | D20: =B20-C20 -> $1,950.00 | E20: Apr
A21: ='CASH FLOW'!A10 -> 2026-05-01 | B21: ='CASH FLOW'!C10 -> $2,450.00 | C21: ='CASH FLOW'!D10 -> $1,325.00 | D21: =B21-C21 -> $1,125.00 | E21: May
A22: ='CASH FLOW'!A11 -> 2026-06-01 | B22: ='CASH FLOW'!C11 -> $3,575.00 | C22: ='CASH FLOW'!D11 -> $1,085.00 | D22: =B22-C22 -> $2,490.00 | E22: Jun
A23: ='CASH FLOW'!A12 -> 2026-07-01 | B23: ='CASH FLOW'!C12 -> 0 | C23: ='CASH FLOW'!D12 -> 0 | D23: =B23-C23 -> 0 | E23: Jul
A24: ='CASH FLOW'!A13 -> 2026-08-01 | B24: ='CASH FLOW'!C13 -> 0 | C24: ='CASH FLOW'!D13 -> 0 | D24: =B24-C24 -> 0 | E24: Aug
A25: ='CASH FLOW'!A14 -> 2026-09-01 | B25: ='CASH FLOW'!C14 -> 0 | C25: ='CASH FLOW'!D14 -> 0 | D25: =B25-C25 -> 0 | E25: Sep
A26: ='CASH FLOW'!A15 -> 2026-10-01 | B26: ='CASH FLOW'!C15 -> 0 | C26: ='CASH FLOW'!D15 -> 0 | D26: =B26-C26 -> 0 | E26: Oct
A27: ='CASH FLOW'!A16 -> 2026-11-01 | B27: ='CASH FLOW'!C16 -> 0 | C27: ='CASH FLOW'!D16 -> 0 | D27: =B27-C27 -> 0 | E27: Nov
A28: ='CASH FLOW'!A17 -> 2026-12-01 | B28: ='CASH FLOW'!C17 -> 0 | C28: ='CASH FLOW'!D17 -> 0 | D28: =B28-C28 -> 0 | E28: Dec

Sheet SALES
A1: SALES TRACKER | B1: SALES TRACKER | C1: SALES TRACKER | D1: SALES TRACKER | E1: SALES TRACKER | F1: SALES TRACKER | G1: SALES TRACKER | H1: SALES TRACKER
A2: Enter yellow cells. Total is calculated automatically. | B2: Enter yellow cells. Total is calculated automatically. | C2: Enter yellow cells. Total is calculated automatically. | D2: Enter yellow cells. Total is calculated automatically. | E2: Enter yellow cells. Total is calculated automatically. | F2: Enter yellow cells. Total is calculated automatically. | G2: Enter yellow cells. Total is calculated automatically. | H2: Enter yellow cells. Total is calculated automatically.
A5: Date | B5: Sale / Invoice # | C5: Customer | D5: Category | E5: Description | F5: Quantity | G5: Unit price | H5: Total
A6: 2026-01-05 | B6: S-1001 | C6: Northstar Coffee | D6: Services | E6: Website refresh | F6: 1 | G6: $2,400.00 | H6: =IF(COUNTA(A6:G6)=0,"",F6*G6) -> $2,400.00
A7: 2026-01-18 | B7: S-1002 | C7: Maya Brooks | D7: Training | E7: Excel workflow session | F7: 2 | G7: $450.00 | H7: =IF(COUNTA(A7:G7)=0,"",F7*G7) -> $900.00
A8: 2026-02-03 | B8: S-1003 | C8: Greenline Dental | D8: Consulting | E8: Operations audit | F8: 1 | G8: $1,800.00 | H8: =IF(COUNTA(A8:G8)=0,"",F8*G8) -> $1,800.00
A9: 2026-02-21 | B9: S-1004 | C9: Cedar & Co. | D9: Products | E9: Dashboard template | F9: 5 | G9: $95.00 | H9: =IF(COUNTA(A9:G9)=0,"",F9*G9) -> $475.00
A10: 2026-03-10 | B10: S-1005 | C10: Harbor Fitness | D10: Subscriptions | E10: Monthly reporting | F10: 3 | G10: $325.00 | H10: =IF(COUNTA(A10:G10)=0,"",F10*G10) -> $975.00
A11: 2026-03-27 | B11: S-1006 | C11: Northstar Coffee | D11: Services | E11: Email automation | F11: 1 | G11: $1,250.00 | H11: =IF(COUNTA(A11:G11)=0,"",F11*G11) -> $1,250.00
A12: 2026-04-07 | B12: S-1007 | C12: Solace Salon | D12: Services | E12: Booking workflow | F12: 1 | G12: $2,100.00 | H12: =IF(COUNTA(A12:G12)=0,"",F12*G12) -> $2,100.00
A13: 2026-04-19 | B13: S-1008 | C13: Greenline Dental | D13: Training | E13: Team training | F13: 4 | G13: $350.00 | H13: =IF(COUNTA(A13:G13)=0,"",F13*G13) -> $1,400.00
A14: 2026-05-04 | B14: S-1009 | C14: Atlas Repairs | D14: Consulting | E14: Process mapping | F14: 1 | G14: $1,650.00 | H14: =IF(COUNTA(A14:G14)=0,"",F14*G14) -> $1,650.00
A15: 2026-05-22 | B15: S-1010 | C15: Cedar & Co. | D15: Licensing | E15: Template license | F15: 10 | G15: $80.00 | H15: =IF(COUNTA(A15:G15)=0,"",F15*G15) -> $800.00
A16: 2026-06-09 | B16: S-1011 | C16: Harbor Fitness | D16: Services | E16: Dashboard build | F16: 1 | G16: $2,750.00 | H16: =IF(COUNTA(A16:G16)=0,"",F16*G16) -> $2,750.00
A17: 2026-06-24 | B17: S-1012 | C17: Solace Salon | D17: Subscriptions | E17: Monthly support | F17: 3 | G17: $275.00 | H17: =IF(COUNTA(A17:G17)=0,"",F17*G17) -> $825.00
H18: =IF(COUNTA(A18:G18)=0,"",F18*G18) -> 
H19: =IF(COUNTA(A19:G19)=0,"",F19*G19) -> 
H20: =IF(COUNTA(A20:G20)=0,"",F20*G20) -> 
H21: =IF(COUNTA(A21:G21)=0,"",F21*G21) -> 
H22: =IF(COUNTA(A22:G22)=0,"",F22*G22) -> 
H23: =IF(COUNTA(A23:G23)=0,"",F23*G23) -> 
H24: =IF(COUNTA(A24:G24)=0,"",F24*G24) -> 
H25: =IF(COUNTA(A25:G25)=0,"",F25*G25) -> 
H26: =IF(COUNTA(A26:G26)=0,"",F26*G26) -> 
H27: =IF(COUNTA(A27:G27)=0,"",F27*G27) -> 
H28: =IF(COUNTA(A28:G28)=0,"",F28*G28) -> 
H29: =IF(COUNTA(A29:G29)=0,"",F29*G29) -> 
H30: =IF(COUNTA(A30:G30)=0,"",F30*G30) -> 
H31: =IF(COUNTA(A31:G31)=0,"",F31*G31) -> 
H32: =IF(COUNTA(A32:G32)=0,"",F32*G32) -> 
H33: =IF(COUNTA(A33:G33)=0,"",F33*G33) -> 
H34: =IF(COUNTA(A34:G34)=0,"",F34*G34) -> 
H35: =IF(COUNTA(A35:G35)=0,"",F35*G35) -> 
H36: =IF(COUNTA(A36:G36)=0,"",F36*G36) -> 
H37: =IF(COUNTA(A37:G37)=0,"",F37*G37) -> 
H38: =IF(COUNTA(A38:G38)=0,"",F38*G38) -> 
H39: =IF(COUNTA(A39:G39)=0,"",F39*G39) -> 
H40: =IF(COUNTA(A40:G40)=0,"",F40*G40) -> 
H41: =IF(COUNTA(A41:G41)=0,"",F41*G41) -> 
H42: =IF(COUNTA(A42:G42)=0,"",F42*G42) -> 
H43: =IF(COUNTA(A43:G43)=0,"",F43*G43) -> 
H44: =IF(COUNTA(A44:G44)=0,"",F44*G44) -> 
H45: =IF(COUNTA(A45:G45)=0,"",F45*G45) -> 
H46: =IF(COUNTA(A46:G46)=0,"",F46*G46) -> 
H47: =IF(COUNTA(A47:G47)=0,"",F47*G47) -> 
H48: =IF(COUNTA(A48:G48)=0,"",F48*G48) -> 
H49: =IF(COUNTA(A49:G49)=0,"",F49*G49) -> 
H50: =IF(COUNTA(A50:G50)=0,"",F50*G50) -> 
H51: =IF(COUNTA(A51:G51)=0,"",F51*G51) -> 
H52: =IF(COUNTA(A52:G52)=0,"",F52*G52) -> 
H53: =IF(COUNTA(A53:G53)=0,"",F53*G53) -> 
H54: =IF(COUNTA(A54:G54)=0,"",F54*G54) -> 
H55: =IF(COUNTA(A55:G55)=0,"",F55*G55) -> 
H56: =IF(COUNTA(A56:G56)=0,"",F56*G56) -> 
H57: =IF(COUNTA(A57:G57)=0,"",F57*G57) -> 
H58: =IF(COUNTA(A58:G58)=0,"",F58*G58) -> 
H59: =IF(COUNTA(A59:G59)=0,"",F59*G59) -> 
H60: =IF(COUNTA(A60:G60)=0,"",F60*G60) -> 
H61: =IF(COUNTA(A61:G61)=0,"",F61*G61) -> 
H62: =IF(COUNTA(A62:G62)=0,"",F62*G62) -> 
H63: =IF(COUNTA(A63:G63)=0,"",F63*G63) -> 
H64: =IF(COUNTA(A64:G64)=0,"",F64*G64) -> 
H65: =IF(COUNTA(A65:G65)=0,"",F65*G65) -> 
H66: =IF(COUNTA(A66:G66)=0,"",F66*G66) -> 
H67: =IF(COUNTA(A67:G67)=0,"",F67*G67) -> 
H68: =IF(COUNTA(A68:G68)=0,"",F68*G68) -> 
H69: =IF(COUNTA(A69:G69)=0,"",F69*G69) -> 
H70: =IF(COUNTA(A70:G70)=0,"",F70*G70) -> 
H71: =IF(COUNTA(A71:G71)=0,"",F71*G71) -> 
H72: =IF(COUNTA(A72:G72)=0,"",F72*G72) -> 
H73: =IF(COUNTA(A73:G73)=0,"",F73*G73) -> 
H74: =IF(COUNTA(A74:G74)=0,"",F74*G74) -> 
H75: =IF(COUNTA(A75:G75)=0,"",F75*G75) -> 
H76: =IF(COUNTA(A76:G76)=0,"",F76*G76) -> 
H77: =IF(COUNTA(A77:G77)=0,"",F77*G77) -> 
H78: =IF(COUNTA(A78:G78)=0,"",F78*G78) -> 
H79: =IF(COUNTA(A79:G79)=0,"",F79*G79) -> 
H80: =IF(COUNTA(A80:G80)=0,"",F80*G80) -> 
H81: =IF(COUNTA(A81:G81)=0,"",F81*G81) -> 
H82: =IF(COUNTA(A82:G82)=0,"",F82*G82) -> 
H83: =IF(COUNTA(A83:G83)=0,"",F83*G83) -> 
H84: =IF(COUNTA(A84:G84)=0,"",F84*G84) -> 
H85: =IF(COUNTA(A85:G85)=0,"",F85*G85) -> 
H86: =IF(COUNTA(A86:G86)=0,"",F86*G86) -> 
H87: =IF(COUNTA(A87:G87)=0,"",F87*G87) -> 
H88: =IF(COUNTA(A88:G88)=0,"",F88*G88) -> 
H89: =IF(COUNTA(A89:G89)=0,"",F89*G89) -> 
H90: =IF(COUNTA(A90:G90)=0,"",F90*G90) -> 
H91: =IF(COUNTA(A91:G91)=0,"",F91*G91) -> 
H92: =IF(COUNTA(A92:G92)=0,"",F92*G92) -> 
H93: =IF(COUNTA(A93:G93)=0,"",F93*G93) -> 
H94: =IF(COUNTA(A94:G94)=0,"",F94*G94) -> 
H95: =IF(COUNTA(A95:G95)=0,"",F95*G95) -> 
H96: =IF(COUNTA(A96:G96)=0,"",F96*G96) -> 
H97: =IF(COUNTA(A97:G97)=0,"",F97*G97) -> 
H98: =IF(COUNTA(A98:G98)=0,"",F98*G98) -> 
H99: =IF(COUNTA(A99:G99)=0,"",F99*G99) -> 
H100: =IF(COUNTA(A100:G100)=0,"",F100*G100) -> 
H101: =IF(COUNTA(A101:G101)=0,"",F101*G101) -> 
H102: =IF(COUNTA(A102:G102)=0,"",F102*G102) -> 
H103: =IF(COUNTA(A103:G103)=0,"",F103*G103) -> 
H104: =IF(COUNTA(A104:G104)=0,"",F104*G104) -> 
H105: =IF(COUNTA(A105:G105)=0,"",F105*G105) -> 
H106: =IF(COUNTA(A106:G106)=0,"",F106*G106) -> 
H107: =IF(COUNTA(A107:G107)=0,"",F107*G107) -> 
H108: =IF(COUNTA(A108:G108)=0,"",F108*G108) -> 
H109: =IF(COUNTA(A109:G109)=0,"",F109*G109) -> 
H110: =IF(COUNTA(A110:G110)=0,"",F110*G110) -> 
H111: =IF(COUNTA(A111:G111)=0,"",F111*G111) -> 
H112: =IF(COUNTA(A112:G112)=0,"",F112*G112) -> 
H113: =IF(COUNTA(A113:G113)=0,"",F113*G113) -> 
H114: =IF(COUNTA(A114:G114)=0,"",F114*G114) -> 
H115: =IF(COUNTA(A115:G115)=0,"",F115*G115) -> 
H116: =IF(COUNTA(A116:G116)=0,"",F116*G116) -> 
H117: =IF(COUNTA(A117:G117)=0,"",F117*G117) -> 
H118: =IF(COUNTA(A118:G118)=0,"",F118*G118) -> 
H119: =IF(COUNTA(A119:G119)=0,"",F119*G119) -> 
H120: =IF(COUNTA(A120:G120)=0,"",F120*G120) -> 
H121: =IF(COUNTA(A121:G121)=0,"",F121*G121) -> 
H122: =IF(COUNTA(A122:G122)=0,"",F122*G122) -> 
H123: =IF(COUNTA(A123:G123)=0,"",F123*G123) -> 
H124: =IF(COUNTA(A124:G124)=0,"",F124*G124) -> 
H125: =IF(COUNTA(A125:G125)=0,"",F125*G125) -> 
H126: =IF(COUNTA(A126:G126)=0,"",F126*G126) -> 
H127: =IF(COUNTA(A127:G127)=0,"",F127*G127) -> 
H128: =IF(COUNTA(A128:G128)=0,"",F128*G128) -> 
H129: =IF(COUNTA(A129:G129)=0,"",F129*G129) -> 
H130: =IF(COUNTA(A130:G130)=0,"",F130*G130) -> 
H131: =IF(COUNTA(A131:G131)=0,"",F131*G131) -> 
H132: =IF(COUNTA(A132:G132)=0,"",F132*G132) -> 
H133: =IF(COUNTA(A133:G133)=0,"",F133*G133) -> 
H134: =IF(COUNTA(A134:G134)=0,"",F134*G134) -> 
H135: =IF(COUNTA(A135:G135)=0,"",F135*G135) -> 
H136: =IF(COUNTA(A136:G136)=0,"",F136*G136) -> 
H137: =IF(COUNTA(A137:G137)=0,"",F137*G137) -> 
H138: =IF(COUNTA(A138:G138)=0,"",F138*G138) -> 
H139: =IF(COUNTA(A139:G139)=0,"",F139*G139) -> 
H140: =IF(COUNTA(A140:G140)=0,"",F140*G140) -> 
H141: =IF(COUNTA(A141:G141)=0,"",F141*G141) -> 
H142: =IF(COUNTA(A142:G142)=0,"",F142*G142) -> 
H143: =IF(COUNTA(A143:G143)=0,"",F143*G143) -> 
H144: =IF(COUNTA(A144:G144)=0,"",F144*G144) -> 
H145: =IF(COUNTA(A145:G145)=0,"",F145*G145) -> 
H146: =IF(COUNTA(A146:G146)=0,"",F146*G146) -> 
H147: =IF(COUNTA(A147:G147)=0,"",F147*G147) -> 
H148: =IF(COUNTA(A148:G148)=0,"",F148*G148) -> 
H149: =IF(COUNTA(A149:G149)=0,"",F149*G149) -> 
H150: =IF(COUNTA(A150:G150)=0,"",F150*G150) -> 
H151: =IF(COUNTA(A151:G151)=0,"",F151*G151) -> 
H152: =IF(COUNTA(A152:G152)=0,"",F152*G152) -> 
H153: =IF(COUNTA(A153:G153)=0,"",F153*G153) -> 
H154: =IF(COUNTA(A154:G154)=0,"",F154*G154) -> 
H155: =IF(COUNTA(A155:G155)=0,"",F155*G155) -> 
H156: =IF(COUNTA(A156:G156)=0,"",F156*G156) -> 
H157: =IF(COUNTA(A157:G157)=0,"",F157*G157) -> 
H158: =IF(COUNTA(A158:G158)=0,"",F158*G158) -> 
H159: =IF(COUNTA(A159:G159)=0,"",F159*G159) -> 
H160: =IF(COUNTA(A160:G160)=0,"",F160*G160) -> 
H161: =IF(COUNTA(A161:G161)=0,"",F161*G161) -> 
H162: =IF(COUNTA(A162:G162)=0,"",F162*G162) -> 
H163: =IF(COUNTA(A163:G163)=0,"",F163*G163) -> 
H164: =IF(COUNTA(A164:G164)=0,"",F164*G164) -> 
H165: =IF(COUNTA(A165:G165)=0,"",F165*G165) -> 
H166: =IF(COUNTA(A166:G166)=0,"",F166*G166) -> 
H167: =IF(COUNTA(A167:G167)=0,"",F167*G167) -> 
H168: =IF(COUNTA(A168:G168)=0,"",F168*G168) -> 
H169: =IF(COUNTA(A169:G169)=0,"",F169*G169) -> 
H170: =IF(COUNTA(A170:G170)=0,"",F170*G170) -> 
H171: =IF(COUNTA(A171:G171)=0,"",F171*G171) -> 
H172: =IF(COUNTA(A172:G172)=0,"",F172*G172) -> 
H173: =IF(COUNTA(A173:G173)=0,"",F173*G173) -> 
H174: =IF(COUNTA(A174:G174)=0,"",F174*G174) -> 
H175: =IF(COUNTA(A175:G175)=0,"",F175*G175) -> 
H176: =IF(COUNTA(A176:G176)=0,"",F176*G176) -> 
H177: =IF(COUNTA(A177:G177)=0,"",F177*G177) -> 
H178: =IF(COUNTA(A178:G178)=0,"",F178*G178) -> 
H179: =IF(COUNTA(A179:G179)=0,"",F179*G179) -> 
H180: =IF(COUNTA(A180:G180)=0,"",F180*G180) -> 
H181: =IF(COUNTA(A181:G181)=0,"",F181*G181) -> 
H182: =IF(COUNTA(A182:G182)=0,"",F182*G182) -> 
H183: =IF(COUNTA(A183:G183)=0,"",F183*G183) -> 
H184: =IF(COUNTA(A184:G184)=0,"",F184*G184) -> 
H185: =IF(COUNTA(A185:G185)=0,"",F185*G185) -> 
H186: =IF(COUNTA(A186:G186)=0,"",F186*G186) -> 
H187: =IF(COUNTA(A187:G187)=0,"",F187*G187) -> 
H188: =IF(COUNTA(A188:G188)=0,"",F188*G188) -> 
H189: =IF(COUNTA(A189:G189)=0,"",F189*G189) -> 
H190: =IF(COUNTA(A190:G190)=0,"",F190*G190) -> 
H191: =IF(COUNTA(A191:G191)=0,"",F191*G191) -> 
H192: =IF(COUNTA(A192:G192)=0,"",F192*G192) -> 
H193: =IF(COUNTA(A193:G193)=0,"",F193*G193) -> 
H194: =IF(COUNTA(A194:G194)=0,"",F194*G194) -> 
H195: =IF(COUNTA(A195:G195)=0,"",F195*G195) -> 
H196: =IF(COUNTA(A196:G196)=0,"",F196*G196) -> 
H197: =IF(COUNTA(A197:G197)=0,"",F197*G197) -> 
H198: =IF(COUNTA(A198:G198)=0,"",F198*G198) -> 
H199: =IF(COUNTA(A199:G199)=0,"",F199*G199) -> 
H200: =IF(COUNTA(A200:G200)=0,"",F200*G200) -> 
H201: =IF(COUNTA(A201:G201)=0,"",F201*G201) -> 
H202: =IF(COUNTA(A202:G202)=0,"",F202*G202) -> 
... 3 more rows

Sheet EXPENSES
A1: EXPENSE TRACKER | B1: EXPENSE TRACKER | C1: EXPENSE TRACKER | D1: EXPENSE TRACKER | E1: EXPENSE TRACKER | F1: EXPENSE TRACKER | G1: EXPENSE TRACKER | H1: EXPENSE TRACKER
A2: Capture every business purchase in one place. | B2: Capture every business purchase in one place. | C2: Capture every business purchase in one place. | D2: Capture every business purchase in one place. | E2: Capture every business purchase in one place. | F2: Capture every business purchase in one place. | G2: Capture every business purchase in one place. | H2: Capture every business purchase in one place.
A5: Date | B5: Vendor | C5: Category | D5: Description | E5: Payment method | F5: Amount | G5: Receipt? | H5: Notes
A6: 2026-01-03 | B6: Adobe | C6: Software | D6: Creative software | E6: Credit card | F6: $89.00 | G6: Yes | H6: Monthly
A7: 2026-01-14 | B7: Meta | C7: Advertising | D7: Lead campaign | E7: Credit card | F7: $300.00 | G7: Yes | H7: January campaign
A8: 2026-02-01 | B8: Workspace Co. | C8: Rent | D8: Studio rent | E8: Bank transfer | F8: $900.00 | G8: Yes
A9: 2026-02-12 | B9: Office Depot | C9: Office | D9: Printer supplies | E9: Debit card | F9: $146.00 | G9: Yes
A10: 2026-03-01 | B10: Workspace Co. | C10: Rent | D10: Studio rent | E10: Bank transfer | F10: $900.00 | G10: Yes
A11: 2026-03-18 | B11: QuickBooks | C11: Software | D11: Accounting software | E11: Credit card | F11: $40.00 | G11: Yes | H11: Monthly
A12: 2026-04-01 | B12: Workspace Co. | C12: Rent | D12: Studio rent | E12: Bank transfer | F12: $900.00 | G12: Yes
A13: 2026-04-11 | B13: Contractor Group | C13: Contractors | D13: Design support | E13: Bank transfer | F13: $650.00 | G13: Yes | H13: Project support
A14: 2026-05-01 | B14: Workspace Co. | C14: Rent | D14: Studio rent | E14: Bank transfer | F14: $900.00 | G14: Yes
A15: 2026-05-16 | B15: JetBlue | C15: Travel | D15: Client visit | E15: Credit card | F15: $425.00 | G15: Yes
A16: 2026-06-01 | B16: Workspace Co. | C16: Rent | D16: Studio rent | E16: Bank transfer | F16: $900.00 | G16: Yes
A17: 2026-06-13 | B17: Hiscox | C17: Insurance | D17: Business insurance | E17: Bank transfer | F17: $185.00 | G17: Yes | H17: Monthly

Sheet INVOICES
A1: INVOICE TRACKER | B1: INVOICE TRACKER | C1: INVOICE TRACKER | D1: INVOICE TRACKER | E1: INVOICE TRACKER | F1: INVOICE TRACKER | G1: INVOICE TRACKER | H1: INVOICE TRACKER | I1: INVOICE TRACKER
A2: Balances, payment status, and overdue days calculate automatically. | B2: Balances, payment status, and overdue days calculate automatically. | C2: Balances, payment status, and overdue days calculate automatically. | D2: Balances, payment status, and overdue days calculate automatically. | E2: Balances, payment status, and overdue days calculate automatically. | F2: Balances, payment status, and overdue days calculate automatically. | G2: Balances, payment status, and overdue days calculate automatically. | H2: Balances, payment status, and overdue days calculate automatically.
A5: Invoice # | B5: Customer | C5: Issue date | D5: Due date | E5: Invoice total | F5: Amount paid | G5: Balance | H5: Status | I5: Days overdue
A6: INV-1001 | B6: Northstar Coffee | C6: 2026-01-05 | D6: 2026-01-20 | E6: $2,400.00 | F6: $2,400.00 | G6: =IF(E6="","",MAX(E6-F6,0)) -> 0 | H6: =IF(E6="","",IF(G6=0,"Paid",IF(D6<TODAY(),"Overdue","Open"))) -> Paid | I6: =IF(OR(D6="",G6=0),0,MAX(TODAY()-D6,0)) -> 0
A7: INV-1002 | B7: Greenline Dental | C7: 2026-02-03 | D7: 2026-03-05 | E7: $1,800.00 | F7: $1,800.00 | G7: =IF(E7="","",MAX(E7-F7,0)) -> 0 | H7: =IF(E7="","",IF(G7=0,"Paid",IF(D7<TODAY(),"Overdue","Open"))) -> Paid | I7: =IF(OR(D7="",G7=0),0,MAX(TODAY()-D7,0)) -> 0
A8: INV-1003 | B8: Harbor Fitness | C8: 2026-03-10 | D8: 2026-04-09 | E8: $975.00 | F8: $650.00 | G8: =IF(E8="","",MAX(E8-F8,0)) -> $325.00 | H8: =IF(E8="","",IF(G8=0,"Paid",IF(D8<TODAY(),"Overdue","Open"))) -> Overdue | I8: =IF(OR(D8="",G8=0),0,MAX(TODAY()-D8,0)) -> 120
A9: INV-1004 | B9: Solace Salon | C9: 2026-04-07 | D9: 2026-05-07 | E9: $2,100.00 | F9: $1,500.00 | G9: =IF(E9="","",MAX(E9-F9,0)) -> $600.00 | H9: =IF(E9="","",IF(G9=0,"Paid",IF(D9<TODAY(),"Overdue","Open"))) -> Overdue | I9: =IF(OR(D9="",G9=0),0,MAX(TODAY()-D9,0)) -> 92
A10: INV-1005 | B10: Atlas Repairs | C10: 2026-05-04 | D10: 2026-06-03 | E10: $1,650.00 | F10: 0 | G10: =IF(E10="","",MAX(E10-F10,0)) -> $1,650.00 | H10: =IF(E10="","",IF(G10=0,"Paid",IF(D10<TODAY(),"Overdue","Open"))) -> Overdue | I10: =IF(OR(D10="",G10=0),0,MAX(TODAY()-D10,0)) -> 65
A11: INV-1006 | B11: Harbor Fitness | C11: 2026-06-09 | D11: 2026-07-09 | E11: $2,750.00 | F11: $1,000.00 | G11: =IF(E11="","",MAX(E11-F11,0)) -> $1,750.00 | H11: =IF(E11="","",IF(G11=0,"Paid",IF(D11<TODAY(),"Overdue","Open"))) -> Overdue | I11: =IF(OR(D11="",G11=0),0,MAX(TODAY()-D11,0)) -> 29
G12: =IF(E12="","",MAX(E12-F12,0)) ->  | H12: =IF(E12="","",IF(G12=0,"Paid",IF(D12<TODAY(),"Overdue","Open"))) ->  | I12: =IF(OR(D12="",G12=0),0,MAX(TODAY()-D12,0)) -> 0
G13: =IF(E13="","",MAX(E13-F13,0)) ->  | H13: =IF(E13="","",IF(G13=0,"Paid",IF(D13<TODAY(),"Overdue","Open"))) ->  | I13: =IF(OR(D13="",G13=0),0,MAX(TODAY()-D13,0)) -> 0
G14: =IF(E14="","",MAX(E14-F14,0)) ->  | H14: =IF(E14="","",IF(G14=0,"Paid",IF(D14<TODAY(),"Overdue","Open"))) ->  | I14: =IF(OR(D14="",G14=0),0,MAX(TODAY()-D14,0)) -> 0
G15: =IF(E15="","",MAX(E15-F15,0)) ->  | H15: =IF(E15="","",IF(G15=0,"Paid",IF(D15<TODAY(),"Overdue","Open"))) ->  | I15: =IF(OR(D15="",G15=0),0,MAX(TODAY()-D15,0)) -> 0
G16: =IF(E16="","",MAX(E16-F16,0)) ->  | H16: =IF(E16="","",IF(G16=0,"Paid",IF(D16<TODAY(),"Overdue","Open"))) ->  | I16: =IF(OR(D16="",G16=0),0,MAX(TODAY()-D16,0)) -> 0
G17: =IF(E17="","",MAX(E17-F17,0)) ->  | H17: =IF(E17="","",IF(G17=0,"Paid",IF(D17<TODAY(),"Overdue","Open"))) ->  | I17: =IF(OR(D17="",G17=0),0,MAX(TODAY()-D17,0)) -> 0
G18: =IF(E18="","",MAX(E18-F18,0)) ->  | H18: =IF(E18="","",IF(G18=0,"Paid",IF(D18<TODAY(),"Overdue","Open"))) ->  | I18: =IF(OR(D18="",G18=0),0,MAX(TODAY()-D18,0)) -> 0
G19: =IF(E19="","",MAX(E19-F19,0)) ->  | H19: =IF(E19="","",IF(G19=0,"Paid",IF(D19<TODAY(),"Overdue","Open"))) ->  | I19: =IF(OR(D19="",G19=0),0,MAX(TODAY()-D19,0)) -> 0
G20: =IF(E20="","",MAX(E20-F20,0)) ->  | H20: =IF(E20="","",IF(G20=0,"Paid",IF(D20<TODAY(),"Overdue","Open"))) ->  | I20: =IF(OR(D20="",G20=0),0,MAX(TODAY()-D20,0)) -> 0
G21: =IF(E21="","",MAX(E21-F21,0)) ->  | H21: =IF(E21="","",IF(G21=0,"Paid",IF(D21<TODAY(),"Overdue","Open"))) ->  | I21: =IF(OR(D21="",G21=0),0,MAX(TODAY()-D21,0)) -> 0
G22: =IF(E22="","",MAX(E22-F22,0)) ->  | H22: =IF(E22="","",IF(G22=0,"Paid",IF(D22<TODAY(),"Overdue","Open"))) ->  | I22: =IF(OR(D22="",G22=0),0,MAX(TODAY()-D22,0)) -> 0
G23: =IF(E23="","",MAX(E23-F23,0)) ->  | H23: =IF(E23="","",IF(G23=0,"Paid",IF(D23<TODAY(),"Overdue","Open"))) ->  | I23: =IF(OR(D23="",G23=0),0,MAX(TODAY()-D23,0)) -> 0
G24: =IF(E24="","",MAX(E24-F24,0)) ->  | H24: =IF(E24="","",IF(G24=0,"Paid",IF(D24<TODAY(),"Overdue","Open"))) ->  | I24: =IF(OR(D24="",G24=0),0,MAX(TODAY()-D24,0)) -> 0
G25: =IF(E25="","",MAX(E25-F25,0)) ->  | H25: =IF(E25="","",IF(G25=0,"Paid",IF(D25<TODAY(),"Overdue","Open"))) ->  | I25: =IF(OR(D25="",G25=0),0,MAX(TODAY()-D25,0)) -> 0
G26: =IF(E26="","",MAX(E26-F26,0)) ->  | H26: =IF(E26="","",IF(G26=0,"Paid",IF(D26<TODAY(),"Overdue","Open"))) ->  | I26: =IF(OR(D26="",G26=0),0,MAX(TODAY()-D26,0)) -> 0
G27: =IF(E27="","",MAX(E27-F27,0)) ->  | H27: =IF(E27="","",IF(G27=0,"Paid",IF(D27<TODAY(),"Overdue","Open"))) ->  | I27: =IF(OR(D27="",G27=0),0,MAX(TODAY()-D27,0)) -> 0
G28: =IF(E28="","",MAX(E28-F28,0)) ->  | H28: =IF(E28="","",IF(G28=0,"Paid",IF(D28<TODAY(),"Overdue","Open"))) ->  | I28: =IF(OR(D28="",G28=0),0,MAX(TODAY()-D28,0)) -> 0
G29: =IF(E29="","",MAX(E29-F29,0)) ->  | H29: =IF(E29="","",IF(G29=0,"Paid",IF(D29<TODAY(),"Overdue","Open"))) ->  | I29: =IF(OR(D29="",G29=0),0,MAX(TODAY()-D29,0)) -> 0
G30: =IF(E30="","",MAX(E30-F30,0)) ->  | H30: =IF(E30="","",IF(G30=0,"Paid",IF(D30<TODAY(),"Overdue","Open"))) ->  | I30: =IF(OR(D30="",G30=0),0,MAX(TODAY()-D30,0)) -> 0
G31: =IF(E31="","",MAX(E31-F31,0)) ->  | H31: =IF(E31="","",IF(G31=0,"Paid",IF(D31<TODAY(),"Overdue","Open"))) ->  | I31: =IF(OR(D31="",G31=0),0,MAX(TODAY()-D31,0)) -> 0
G32: =IF(E32="","",MAX(E32-F32,0)) ->  | H32: =IF(E32="","",IF(G32=0,"Paid",IF(D32<TODAY(),"Overdue","Open"))) ->  | I32: =IF(OR(D32="",G32=0),0,MAX(TODAY()-D32,0)) -> 0
G33: =IF(E33="","",MAX(E33-F33,0)) ->  | H33: =IF(E33="","",IF(G33=0,"Paid",IF(D33<TODAY(),"Overdue","Open"))) ->  | I33: =IF(OR(D33="",G33=0),0,MAX(TODAY()-D33,0)) -> 0
G34: =IF(E34="","",MAX(E34-F34,0)) ->  | H34: =IF(E34="","",IF(G34=0,"Paid",IF(D34<TODAY(),"Overdue","Open"))) ->  | I34: =IF(OR(D34="",G34=0),0,MAX(TODAY()-D34,0)) -> 0
G35: =IF(E35="","",MAX(E35-F35,0)) ->  | H35: =IF(E35="","",IF(G35=0,"Paid",IF(D35<TODAY(),"Overdue","Open"))) ->  | I35: =IF(OR(D35="",G35=0),0,MAX(TODAY()-D35,0)) -> 0
G36: =IF(E36="","",MAX(E36-F36,0)) ->  | H36: =IF(E36="","",IF(G36=0,"Paid",IF(D36<TODAY(),"Overdue","Open"))) ->  | I36: =IF(OR(D36="",G36=0),0,MAX(TODAY()-D36,0)) -> 0
G37: =IF(E37="","",MAX(E37-F37,0)) ->  | H37: =IF(E37="","",IF(G37=0,"Paid",IF(D37<TODAY(),"Overdue","Open"))) ->  | I37: =IF(OR(D37="",G37=0),0,MAX(TODAY()-D37,0)) -> 0
G38: =IF(E38="","",MAX(E38-F38,0)) ->  | H38: =IF(E38="","",IF(G38=0,"Paid",IF(D38<TODAY(),"Overdue","Open"))) ->  | I38: =IF(OR(D38="",G38=0),0,MAX(TODAY()-D38,0)) -> 0
G39: =IF(E39="","",MAX(E39-F39,0)) ->  | H39: =IF(E39="","",IF(G39=0,"Paid",IF(D39<TODAY(),"Overdue","Open"))) ->  | I39: =IF(OR(D39="",G39=0),0,MAX(TODAY()-D39,0)) -> 0
G40: =IF(E40="","",MAX(E40-F40,0)) ->  | H40: =IF(E40="","",IF(G40=0,"Paid",IF(D40<TODAY(),"Overdue","Open"))) ->  | I40: =IF(OR(D40="",G40=0),0,MAX(TODAY()-D40,0)) -> 0
G41: =IF(E41="","",MAX(E41-F41,0)) ->  | H41: =IF(E41="","",IF(G41=0,"Paid",IF(D41<TODAY(),"Overdue","Open"))) ->  | I41: =IF(OR(D41="",G41=0),0,MAX(TODAY()-D41,0)) -> 0
G42: =IF(E42="","",MAX(E42-F42,0)) ->  | H42: =IF(E42="","",IF(G42=0,"Paid",IF(D42<TODAY(),"Overdue","Open"))) ->  | I42: =IF(OR(D42="",G42=0),0,MAX(TODAY()-D42,0)) -> 0
G43: =IF(E43="","",MAX(E43-F43,0)) ->  | H43: =IF(E43="","",IF(G43=0,"Paid",IF(D43<TODAY(),"Overdue","Open"))) ->  | I43: =IF(OR(D43="",G43=0),0,MAX(TODAY()-D43,0)) -> 0
G44: =IF(E44="","",MAX(E44-F44,0)) ->  | H44: =IF(E44="","",IF(G44=0,"Paid",IF(D44<TODAY(),"Overdue","Open"))) ->  | I44: =IF(OR(D44="",G44=0),0,MAX(TODAY()-D44,0)) -> 0
G45: =IF(E45="","",MAX(E45-F45,0)) ->  | H45: =IF(E45="","",IF(G45=0,"Paid",IF(D45<TODAY(),"Overdue","Open"))) ->  | I45: =IF(OR(D45="",G45=0),0,MAX(TODAY()-D45,0)) -> 0
G46: =IF(E46="","",MAX(E46-F46,0)) ->  | H46: =IF(E46="","",IF(G46=0,"Paid",IF(D46<TODAY(),"Overdue","Open"))) ->  | I46: =IF(OR(D46="",G46=0),0,MAX(TODAY()-D46,0)) -> 0
G47: =IF(E47="","",MAX(E47-F47,0)) ->  | H47: =IF(E47="","",IF(G47=0,"Paid",IF(D47<TODAY(),"Overdue","Open"))) ->  | I47: =IF(OR(D47="",G47=0),0,MAX(TODAY()-D47,0)) -> 0
G48: =IF(E48="","",MAX(E48-F48,0)) ->  | H48: =IF(E48="","",IF(G48=0,"Paid",IF(D48<TODAY(),"Overdue","Open"))) ->  | I48: =IF(OR(D48="",G48=0),0,MAX(TODAY()-D48,0)) -> 0
G49: =IF(E49="","",MAX(E49-F49,0)) ->  | H49: =IF(E49="","",IF(G49=0,"Paid",IF(D49<TODAY(),"Overdue","Open"))) ->  | I49: =IF(OR(D49="",G49=0),0,MAX(TODAY()-D49,0)) -> 0
G50: =IF(E50="","",MAX(E50-F50,0)) ->  | H50: =IF(E50="","",IF(G50=0,"Paid",IF(D50<TODAY(),"Overdue","Open"))) ->  | I50: =IF(OR(D50="",G50=0),0,MAX(TODAY()-D50,0)) -> 0
G51: =IF(E51="","",MAX(E51-F51,0)) ->  | H51: =IF(E51="","",IF(G51=0,"Paid",IF(D51<TODAY(),"Overdue","Open"))) ->  | I51: =IF(OR(D51="",G51=0),0,MAX(TODAY()-D51,0)) -> 0
G52: =IF(E52="","",MAX(E52-F52,0)) ->  | H52: =IF(E52="","",IF(G52=0,"Paid",IF(D52<TODAY(),"Overdue","Open"))) ->  | I52: =IF(OR(D52="",G52=0),0,MAX(TODAY()-D52,0)) -> 0
G53: =IF(E53="","",MAX(E53-F53,0)) ->  | H53: =IF(E53="","",IF(G53=0,"Paid",IF(D53<TODAY(),"Overdue","Open"))) ->  | I53: =IF(OR(D53="",G53=0),0,MAX(TODAY()-D53,0)) -> 0
G54: =IF(E54="","",MAX(E54-F54,0)) ->  | H54: =IF(E54="","",IF(G54=0,"Paid",IF(D54<TODAY(),"Overdue","Open"))) ->  | I54: =IF(OR(D54="",G54=0),0,MAX(TODAY()-D54,0)) -> 0
G55: =IF(E55="","",MAX(E55-F55,0)) ->  | H55: =IF(E55="","",IF(G55=0,"Paid",IF(D55<TODAY(),"Overdue","Open"))) ->  | I55: =IF(OR(D55="",G55=0),0,MAX(TODAY()-D55,0)) -> 0
G56: =IF(E56="","",MAX(E56-F56,0)) ->  | H56: =IF(E56="","",IF(G56=0,"Paid",IF(D56<TODAY(),"Overdue","Open"))) ->  | I56: =IF(OR(D56="",G56=0),0,MAX(TODAY()-D56,0)) -> 0
G57: =IF(E57="","",MAX(E57-F57,0)) ->  | H57: =IF(E57="","",IF(G57=0,"Paid",IF(D57<TODAY(),"Overdue","Open"))) ->  | I57: =IF(OR(D57="",G57=0),0,MAX(TODAY()-D57,0)) -> 0
G58: =IF(E58="","",MAX(E58-F58,0)) ->  | H58: =IF(E58="","",IF(G58=0,"Paid",IF(D58<TODAY(),"Overdue","Open"))) ->  | I58: =IF(OR(D58="",G58=0),0,MAX(TODAY()-D58,0)) -> 0
G59: =IF(E59="","",MAX(E59-F59,0)) ->  | H59: =IF(E59="","",IF(G59=0,"Paid",IF(D59<TODAY(),"Overdue","Open"))) ->  | I59: =IF(OR(D59="",G59=0),0,MAX(TODAY()-D59,0)) -> 0
G60: =IF(E60="","",MAX(E60-F60,0)) ->  | H60: =IF(E60="","",IF(G60=0,"Paid",IF(D60<TODAY(),"Overdue","Open"))) ->  | I60: =IF(OR(D60="",G60=0),0,MAX(TODAY()-D60,0)) -> 0
G61: =IF(E61="","",MAX(E61-F61,0)) ->  | H61: =IF(E61="","",IF(G61=0,"Paid",IF(D61<TODAY(),"Overdue","Open"))) ->  | I61: =IF(OR(D61="",G61=0),0,MAX(TODAY()-D61,0)) -> 0
G62: =IF(E62="","",MAX(E62-F62,0)) ->  | H62: =IF(E62="","",IF(G62=0,"Paid",IF(D62<TODAY(),"Overdue","Open"))) ->  | I62: =IF(OR(D62="",G62=0),0,MAX(TODAY()-D62,0)) -> 0
G63: =IF(E63="","",MAX(E63-F63,0)) ->  | H63: =IF(E63="","",IF(G63=0,"Paid",IF(D63<TODAY(),"Overdue","Open"))) ->  | I63: =IF(OR(D63="",G63=0),0,MAX(TODAY()-D63,0)) -> 0
G64: =IF(E64="","",MAX(E64-F64,0)) ->  | H64: =IF(E64="","",IF(G64=0,"Paid",IF(D64<TODAY(),"Overdue","Open"))) ->  | I64: =IF(OR(D64="",G64=0),0,MAX(TODAY()-D64,0)) -> 0
G65: =IF(E65="","",MAX(E65-F65,0)) ->  | H65: =IF(E65="","",IF(G65=0,"Paid",IF(D65<TODAY(),"Overdue","Open"))) ->  | I65: =IF(OR(D65="",G65=0),0,MAX(TODAY()-D65,0)) -> 0
G66: =IF(E66="","",MAX(E66-F66,0)) ->  | H66: =IF(E66="","",IF(G66=0,"Paid",IF(D66<TODAY(),"Overdue","Open"))) ->  | I66: =IF(OR(D66="",G66=0),0,MAX(TODAY()-D66,0)) -> 0
G67: =IF(E67="","",MAX(E67-F67,0)) ->  | H67: =IF(E67="","",IF(G67=0,"Paid",IF(D67<TODAY(),"Overdue","Open"))) ->  | I67: =IF(OR(D67="",G67=0),0,MAX(TODAY()-D67,0)) -> 0
G68: =IF(E68="","",MAX(E68-F68,0)) ->  | H68: =IF(E68="","",IF(G68=0,"Paid",IF(D68<TODAY(),"Overdue","Open"))) ->  | I68: =IF(OR(D68="",G68=0),0,MAX(TODAY()-D68,0)) -> 0
G69: =IF(E69="","",MAX(E69-F69,0)) ->  | H69: =IF(E69="","",IF(G69=0,"Paid",IF(D69<TODAY(),"Overdue","Open"))) ->  | I69: =IF(OR(D69="",G69=0),0,MAX(TODAY()-D69,0)) -> 0
G70: =IF(E70="","",MAX(E70-F70,0)) ->  | H70: =IF(E70="","",IF(G70=0,"Paid",IF(D70<TODAY(),"Overdue","Open"))) ->  | I70: =IF(OR(D70="",G70=0),0,MAX(TODAY()-D70,0)) -> 0
G71: =IF(E71="","",MAX(E71-F71,0)) ->  | H71: =IF(E71="","",IF(G71=0,"Paid",IF(D71<TODAY(),"Overdue","Open"))) ->  | I71: =IF(OR(D71="",G71=0),0,MAX(TODAY()-D71,0)) -> 0
G72: =IF(E72="","",MAX(E72-F72,0)) ->  | H72: =IF(E72="","",IF(G72=0,"Paid",IF(D72<TODAY(),"Overdue","Open"))) ->  | I72: =IF(OR(D72="",G72=0),0,MAX(TODAY()-D72,0)) -> 0
G73: =IF(E73="","",MAX(E73-F73,0)) ->  | H73: =IF(E73="","",IF(G73=0,"Paid",IF(D73<TODAY(),"Overdue","Open"))) ->  | I73: =IF(OR(D73="",G73=0),0,MAX(TODAY()-D73,0)) -> 0
G74: =IF(E74="","",MAX(E74-F74,0)) ->  | H74: =IF(E74="","",IF(G74=0,"Paid",IF(D74<TODAY(),"Overdue","Open"))) ->  | I74: =IF(OR(D74="",G74=0),0,MAX(TODAY()-D74,0)) -> 0
G75: =IF(E75="","",MAX(E75-F75,0)) ->  | H75: =IF(E75="","",IF(G75=0,"Paid",IF(D75<TODAY(),"Overdue","Open"))) ->  | I75: =IF(OR(D75="",G75=0),0,MAX(TODAY()-D75,0)) -> 0
G76: =IF(E76="","",MAX(E76-F76,0)) ->  | H76: =IF(E76="","",IF(G76=0,"Paid",IF(D76<TODAY(),"Overdue","Open"))) ->  | I76: =IF(OR(D76="",G76=0),0,MAX(TODAY()-D76,0)) -> 0
G77: =IF(E77="","",MAX(E77-F77,0)) ->  | H77: =IF(E77="","",IF(G77=0,"Paid",IF(D77<TODAY(),"Overdue","Open"))) ->  | I77: =IF(OR(D77="",G77=0),0,MAX(TODAY()-D77,0)) -> 0
G78: =IF(E78="","",MAX(E78-F78,0)) ->  | H78: =IF(E78="","",IF(G78=0,"Paid",IF(D78<TODAY(),"Overdue","Open"))) ->  | I78: =IF(OR(D78="",G78=0),0,MAX(TODAY()-D78,0)) -> 0
G79: =IF(E79="","",MAX(E79-F79,0)) ->  | H79: =IF(E79="","",IF(G79=0,"Paid",IF(D79<TODAY(),"Overdue","Open"))) ->  | I79: =IF(OR(D79="",G79=0),0,MAX(TODAY()-D79,0)) -> 0
G80: =IF(E80="","",MAX(E80-F80,0)) ->  | H80: =IF(E80="","",IF(G80=0,"Paid",IF(D80<TODAY(),"Overdue","Open"))) ->  | I80: =IF(OR(D80="",G80=0),0,MAX(TODAY()-D80,0)) -> 0
G81: =IF(E81="","",MAX(E81-F81,0)) ->  | H81: =IF(E81="","",IF(G81=0,"Paid",IF(D81<TODAY(),"Overdue","Open"))) ->  | I81: =IF(OR(D81="",G81=0),0,MAX(TODAY()-D81,0)) -> 0
G82: =IF(E82="","",MAX(E82-F82,0)) ->  | H82: =IF(E82="","",IF(G82=0,"Paid",IF(D82<TODAY(),"Overdue","Open"))) ->  | I82: =IF(OR(D82="",G82=0),0,MAX(TODAY()-D82,0)) -> 0
G83: =IF(E83="","",MAX(E83-F83,0)) ->  | H83: =IF(E83="","",IF(G83=0,"Paid",IF(D83<TODAY(),"Overdue","Open"))) ->  | I83: =IF(OR(D83="",G83=0),0,MAX(TODAY()-D83,0)) -> 0
G84: =IF(E84="","",MAX(E84-F84,0)) ->  | H84: =IF(E84="","",IF(G84=0,"Paid",IF(D84<TODAY(),"Overdue","Open"))) ->  | I84: =IF(OR(D84="",G84=0),0,MAX(TODAY()-D84,0)) -> 0
G85: =IF(E85="","",MAX(E85-F85,0)) ->  | H85: =IF(E85="","",IF(G85=0,"Paid",IF(D85<TODAY(),"Overdue","Open"))) ->  | I85: =IF(OR(D85="",G85=0),0,MAX(TODAY()-D85,0)) -> 0
G86: =IF(E86="","",MAX(E86-F86,0)) ->  | H86: =IF(E86="","",IF(G86=0,"Paid",IF(D86<TODAY(),"Overdue","Open"))) ->  | I86: =IF(OR(D86="",G86=0),0,MAX(TODAY()-D86,0)) -> 0
G87: =IF(E87="","",MAX(E87-F87,0)) ->  | H87: =IF(E87="","",IF(G87=0,"Paid",IF(D87<TODAY(),"Overdue","Open"))) ->  | I87: =IF(OR(D87="",G87=0),0,MAX(TODAY()-D87,0)) -> 0
G88: =IF(E88="","",MAX(E88-F88,0)) ->  | H88: =IF(E88="","",IF(G88=0,"Paid",IF(D88<TODAY(),"Overdue","Open"))) ->  | I88: =IF(OR(D88="",G88=0),0,MAX(TODAY()-D88,0)) -> 0
G89: =IF(E89="","",MAX(E89-F89,0)) ->  | H89: =IF(E89="","",IF(G89=0,"Paid",IF(D89<TODAY(),"Overdue","Open"))) ->  | I89: =IF(OR(D89="",G89=0),0,MAX(TODAY()-D89,0)) -> 0
G90: =IF(E90="","",MAX(E90-F90,0)) ->  | H90: =IF(E90="","",IF(G90=0,"Paid",IF(D90<TODAY(),"Overdue","Open"))) ->  | I90: =IF(OR(D90="",G90=0),0,MAX(TODAY()-D90,0)) -> 0
G91: =IF(E91="","",MAX(E91-F91,0)) ->  | H91: =IF(E91="","",IF(G91=0,"Paid",IF(D91<TODAY(),"Overdue","Open"))) ->  | I91: =IF(OR(D91="",G91=0),0,MAX(TODAY()-D91,0)) -> 0
G92: =IF(E92="","",MAX(E92-F92,0)) ->  | H92: =IF(E92="","",IF(G92=0,"Paid",IF(D92<TODAY(),"Overdue","Open"))) ->  | I92: =IF(OR(D92="",G92=0),0,MAX(TODAY()-D92,0)) -> 0
G93: =IF(E93="","",MAX(E93-F93,0)) ->  | H93: =IF(E93="","",IF(G93=0,"Paid",IF(D93<TODAY(),"Overdue","Open"))) ->  | I93: =IF(OR(D93="",G93=0),0,MAX(TODAY()-D93,0)) -> 0
G94: =IF(E94="","",MAX(E94-F94,0)) ->  | H94: =IF(E94="","",IF(G94=0,"Paid",IF(D94<TODAY(),"Overdue","Open"))) ->  | I94: =IF(OR(D94="",G94=0),0,MAX(TODAY()-D94,0)) -> 0
G95: =IF(E95="","",MAX(E95-F95,0)) ->  | H95: =IF(E95="","",IF(G95=0,"Paid",IF(D95<TODAY(),"Overdue","Open"))) ->  | I95: =IF(OR(D95="",G95=0),0,MAX(TODAY()-D95,0)) -> 0
G96: =IF(E96="","",MAX(E96-F96,0)) ->  | H96: =IF(E96="","",IF(G96=0,"Paid",IF(D96<TODAY(),"Overdue","Open"))) ->  | I96: =IF(OR(D96="",G96=0),0,MAX(TODAY()-D96,0)) -> 0
G97: =IF(E97="","",MAX(E97-F97,0)) ->  | H97: =IF(E97="","",IF(G97=0,"Paid",IF(D97<TODAY(),"Overdue","Open"))) ->  | I97: =IF(OR(D97="",G97=0),0,MAX(TODAY()-D97,0)) -> 0
G98: =IF(E98="","",MAX(E98-F98,0)) ->  | H98: =IF(E98="","",IF(G98=0,"Paid",IF(D98<TODAY(),"Overdue","Open"))) ->  | I98: =IF(OR(D98="",G98=0),0,MAX(TODAY()-D98,0)) -> 0
G99: =IF(E99="","",MAX(E99-F99,0)) ->  | H99: =IF(E99="","",IF(G99=0,"Paid",IF(D99<TODAY(),"Overdue","Open"))) ->  | I99: =IF(OR(D99="",G99=0),0,MAX(TODAY()-D99,0)) -> 0
G100: =IF(E100="","",MAX(E100-F100,0)) ->  | H100: =IF(E100="","",IF(G100=0,"Paid",IF(D100<TODAY(),"Overdue","Open"))) ->  | I100: =IF(OR(D100="",G100=0),0,MAX(TODAY()-D100,0)) -> 0
G101: =IF(E101="","",MAX(E101-F101,0)) ->  | H101: =IF(E101="","",IF(G101=0,"Paid",IF(D101<TODAY(),"Overdue","Open"))) ->  | I101: =IF(OR(D101="",G101=0),0,MAX(TODAY()-D101,0)) -> 0
G102: =IF(E102="","",MAX(E102-F102,0)) ->  | H102: =IF(E102="","",IF(G102=0,"Paid",IF(D102<TODAY(),"Overdue","Open"))) ->  | I102: =IF(OR(D102="",G102=0),0,MAX(TODAY()-D102,0)) -> 0
G103: =IF(E103="","",MAX(E103-F103,0)) ->  | H103: =IF(E103="","",IF(G103=0,"Paid",IF(D103<TODAY(),"Overdue","Open"))) ->  | I103: =IF(OR(D103="",G103=0),0,MAX(TODAY()-D103,0)) -> 0
G104: =IF(E104="","",MAX(E104-F104,0)) ->  | H104: =IF(E104="","",IF(G104=0,"Paid",IF(D104<TODAY(),"Overdue","Open"))) ->  | I104: =IF(OR(D104="",G104=0),0,MAX(TODAY()-D104,0)) -> 0
G105: =IF(E105="","",MAX(E105-F105,0)) ->  | H105: =IF(E105="","",IF(G105=0,"Paid",IF(D105<TODAY(),"Overdue","Open"))) ->  | I105: =IF(OR(D105="",G105=0),0,MAX(TODAY()-D105,0)) -> 0
G106: =IF(E106="","",MAX(E106-F106,0)) ->  | H106: =IF(E106="","",IF(G106=0,"Paid",IF(D106<TODAY(),"Overdue","Open"))) ->  | I106: =IF(OR(D106="",G106=0),0,MAX(TODAY()-D106,0)) -> 0
G107: =IF(E107="","",MAX(E107-F107,0)) ->  | H107: =IF(E107="","",IF(G107=0,"Paid",IF(D107<TODAY(),"Overdue","Open"))) ->  | I107: =IF(OR(D107="",G107=0),0,MAX(TODAY()-D107,0)) -> 0
G108: =IF(E108="","",MAX(E108-F108,0)) ->  | H108: =IF(E108="","",IF(G108=0,"Paid",IF(D108<TODAY(),"Overdue","Open"))) ->  | I108: =IF(OR(D108="",G108=0),0,MAX(TODAY()-D108,0)) -> 0
G109: =IF(E109="","",MAX(E109-F109,0)) ->  | H109: =IF(E109="","",IF(G109=0,"Paid",IF(D109<TODAY(),"Overdue","Open"))) ->  | I109: =IF(OR(D109="",G109=0),0,MAX(TODAY()-D109,0)) -> 0
G110: =IF(E110="","",MAX(E110-F110,0)) ->  | H110: =IF(E110="","",IF(G110=0,"Paid",IF(D110<TODAY(),"Overdue","Open"))) ->  | I110: =IF(OR(D110="",G110=0),0,MAX(TODAY()-D110,0)) -> 0
G111: =IF(E111="","",MAX(E111-F111,0)) ->  | H111: =IF(E111="","",IF(G111=0,"Paid",IF(D111<TODAY(),"Overdue","Open"))) ->  | I111: =IF(OR(D111="",G111=0),0,MAX(TODAY()-D111,0)) -> 0
G112: =IF(E112="","",MAX(E112-F112,0)) ->  | H112: =IF(E112="","",IF(G112=0,"Paid",IF(D112<TODAY(),"Overdue","Open"))) ->  | I112: =IF(OR(D112="",G112=0),0,MAX(TODAY()-D112,0)) -> 0
G113: =IF(E113="","",MAX(E113-F113,0)) ->  | H113: =IF(E113="","",IF(G113=0,"Paid",IF(D113<TODAY(),"Overdue","Open"))) ->  | I113: =IF(OR(D113="",G113=0),0,MAX(TODAY()-D113,0)) -> 0
G114: =IF(E114="","",MAX(E114-F114,0)) ->  | H114: =IF(E114="","",IF(G114=0,"Paid",IF(D114<TODAY(),"Overdue","Open"))) ->  | I114: =IF(OR(D114="",G114=0),0,MAX(TODAY()-D114,0)) -> 0
G115: =IF(E115="","",MAX(E115-F115,0)) ->  | H115: =IF(E115="","",IF(G115=0,"Paid",IF(D115<TODAY(),"Overdue","Open"))) ->  | I115: =IF(OR(D115="",G115=0),0,MAX(TODAY()-D115,0)) -> 0
G116: =IF(E116="","",MAX(E116-F116,0)) ->  | H116: =IF(E116="","",IF(G116=0,"Paid",IF(D116<TODAY(),"Overdue","Open"))) ->  | I116: =IF(OR(D116="",G116=0),0,MAX(TODAY()-D116,0)) -> 0
G117: =IF(E117="","",MAX(E117-F117,0)) ->  | H117: =IF(E117="","",IF(G117=0,"Paid",IF(D117<TODAY(),"Overdue","Open"))) ->  | I117: =IF(OR(D117="",G117=0),0,MAX(TODAY()-D117,0)) -> 0
G118: =IF(E118="","",MAX(E118-F118,0)) ->  | H118: =IF(E118="","",IF(G118=0,"Paid",IF(D118<TODAY(),"Overdue","Open"))) ->  | I118: =IF(OR(D118="",G118=0),0,MAX(TODAY()-D118,0)) -> 0
G119: =IF(E119="","",MAX(E119-F119,0)) ->  | H119: =IF(E119="","",IF(G119=0,"Paid",IF(D119<TODAY(),"Overdue","Open"))) ->  | I119: =IF(OR(D119="",G119=0),0,MAX(TODAY()-D119,0)) -> 0
G120: =IF(E120="","",MAX(E120-F120,0)) ->  | H120: =IF(E120="","",IF(G120=0,"Paid",IF(D120<TODAY(),"Overdue","Open"))) ->  | I120: =IF(OR(D120="",G120=0),0,MAX(TODAY()-D120,0)) -> 0
G121: =IF(E121="","",MAX(E121-F121,0)) ->  | H121: =IF(E121="","",IF(G121=0,"Paid",IF(D121<TODAY(),"Overdue","Open"))) ->  | I121: =IF(OR(D121="",G121=0),0,MAX(TODAY()-D121,0)) -> 0
G122: =IF(E122="","",MAX(E122-F122,0)) ->  | H122: =IF(E122="","",IF(G122=0,"Paid",IF(D122<TODAY(),"Overdue","Open"))) ->  | I122: =IF(OR(D122="",G122=0),0,MAX(TODAY()-D122,0)) -> 0
G123: =IF(E123="","",MAX(E123-F123,0)) ->  | H123: =IF(E123="","",IF(G123=0,"Paid",IF(D123<TODAY(),"Overdue","Open"))) ->  | I123: =IF(OR(D123="",G123=0),0,MAX(TODAY()-D123,0)) -> 0
G124: =IF(E124="","",MAX(E124-F124,0)) ->  | H124: =IF(E124="","",IF(G124=0,"Paid",IF(D124<TODAY(),"Overdue","Open"))) ->  | I124: =IF(OR(D124="",G124=0),0,MAX(TODAY()-D124,0)) -> 0
G125: =IF(E125="","",MAX(E125-F125,0)) ->  | H125: =IF(E125="","",IF(G125=0,"Paid",IF(D125<TODAY(),"Overdue","Open"))) ->  | I125: =IF(OR(D125="",G125=0),0,MAX(TODAY()-D125,0)) -> 0
G126: =IF(E126="","",MAX(E126-F126,0)) ->  | H126: =IF(E126="","",IF(G126=0,"Paid",IF(D126<TODAY(),"Overdue","Open"))) ->  | I126: =IF(OR(D126="",G126=0),0,MAX(TODAY()-D126,0)) -> 0
G127: =IF(E127="","",MAX(E127-F127,0)) ->  | H127: =IF(E127="","",IF(G127=0,"Paid",IF(D127<TODAY(),"Overdue","Open"))) ->  | I127: =IF(OR(D127="",G127=0),0,MAX(TODAY()-D127,0)) -> 0
G128: =IF(E128="","",MAX(E128-F128,0)) ->  | H128: =IF(E128="","",IF(G128=0,"Paid",IF(D128<TODAY(),"Overdue","Open"))) ->  | I128: =IF(OR(D128="",G128=0),0,MAX(TODAY()-D128,0)) -> 0
G129: =IF(E129="","",MAX(E129-F129,0)) ->  | H129: =IF(E129="","",IF(G129=0,"Paid",IF(D129<TODAY(),"Overdue","Open"))) ->  | I129: =IF(OR(D129="",G129=0),0,MAX(TODAY()-D129,0)) -> 0
G130: =IF(E130="","",MAX(E130-F130,0)) ->  | H130: =IF(E130="","",IF(G130=0,"Paid",IF(D130<TODAY(),"Overdue","Open"))) ->  | I130: =IF(OR(D130="",G130=0),0,MAX(TODAY()-D130,0)) -> 0
G131: =IF(E131="","",MAX(E131-F131,0)) ->  | H131: =IF(E131="","",IF(G131=0,"Paid",IF(D131<TODAY(),"Overdue","Open"))) ->  | I131: =IF(OR(D131="",G131=0),0,MAX(TODAY()-D131,0)) -> 0
G132: =IF(E132="","",MAX(E132-F132,0)) ->  | H132: =IF(E132="","",IF(G132=0,"Paid",IF(D132<TODAY(),"Overdue","Open"))) ->  | I132: =IF(OR(D132="",G132=0),0,MAX(TODAY()-D132,0)) -> 0
G133: =IF(E133="","",MAX(E133-F133,0)) ->  | H133: =IF(E133="","",IF(G133=0,"Paid",IF(D133<TODAY(),"Overdue","Open"))) ->  | I133: =IF(OR(D133="",G133=0),0,MAX(TODAY()-D133,0)) -> 0
G134: =IF(E134="","",MAX(E134-F134,0)) ->  | H134: =IF(E134="","",IF(G134=0,"Paid",IF(D134<TODAY(),"Overdue","Open"))) ->  | I134: =IF(OR(D134="",G134=0),0,MAX(TODAY()-D134,0)) -> 0
G135: =IF(E135="","",MAX(E135-F135,0)) ->  | H135: =IF(E135="","",IF(G135=0,"Paid",IF(D135<TODAY(),"Overdue","Open"))) ->  | I135: =IF(OR(D135="",G135=0),0,MAX(TODAY()-D135,0)) -> 0
G136: =IF(E136="","",MAX(E136-F136,0)) ->  | H136: =IF(E136="","",IF(G136=0,"Paid",IF(D136<TODAY(),"Overdue","Open"))) ->  | I136: =IF(OR(D136="",G136=0),0,MAX(TODAY()-D136,0)) -> 0
G137: =IF(E137="","",MAX(E137-F137,0)) ->  | H137: =IF(E137="","",IF(G137=0,"Paid",IF(D137<TODAY(),"Overdue","Open"))) ->  | I137: =IF(OR(D137="",G137=0),0,MAX(TODAY()-D137,0)) -> 0
G138: =IF(E138="","",MAX(E138-F138,0)) ->  | H138: =IF(E138="","",IF(G138=0,"Paid",IF(D138<TODAY(),"Overdue","Open"))) ->  | I138: =IF(OR(D138="",G138=0),0,MAX(TODAY()-D138,0)) -> 0
G139: =IF(E139="","",MAX(E139-F139,0)) ->  | H139: =IF(E139="","",IF(G139=0,"Paid",IF(D139<TODAY(),"Overdue","Open"))) ->  | I139: =IF(OR(D139="",G139=0),0,MAX(TODAY()-D139,0)) -> 0
G140: =IF(E140="","",MAX(E140-F140,0)) ->  | H140: =IF(E140="","",IF(G140=0,"Paid",IF(D140<TODAY(),"Overdue","Open"))) ->  | I140: =IF(OR(D140="",G140=0),0,MAX(TODAY()-D140,0)) -> 0
G141: =IF(E141="","",MAX(E141-F141,0)) ->  | H141: =IF(E141="","",IF(G141=0,"Paid",IF(D141<TODAY(),"Overdue","Open"))) ->  | I141: =IF(OR(D141="",G141=0),0,MAX(TODAY()-D141,0)) -> 0
G142: =IF(E142="","",MAX(E142-F142,0)) ->  | H142: =IF(E142="","",IF(G142=0,"Paid",IF(D142<TODAY(),"Overdue","Open"))) ->  | I142: =IF(OR(D142="",G142=0),0,MAX(TODAY()-D142,0)) -> 0
G143: =IF(E143="","",MAX(E143-F143,0)) ->  | H143: =IF(E143="","",IF(G143=0,"Paid",IF(D143<TODAY(),"Overdue","Open"))) ->  | I143: =IF(OR(D143="",G143=0),0,MAX(TODAY()-D143,0)) -> 0
G144: =IF(E144="","",MAX(E144-F144,0)) ->  | H144: =IF(E144="","",IF(G144=0,"Paid",IF(D144<TODAY(),"Overdue","Open"))) ->  | I144: =IF(OR(D144="",G144=0),0,MAX(TODAY()-D144,0)) -> 0
G145: =IF(E145="","",MAX(E145-F145,0)) ->  | H145: =IF(E145="","",IF(G145=0,"Paid",IF(D145<TODAY(),"Overdue","Open"))) ->  | I145: =IF(OR(D145="",G145=0),0,MAX(TODAY()-D145,0)) -> 0
G146: =IF(E146="","",MAX(E146-F146,0)) ->  | H146: =IF(E146="","",IF(G146=0,"Paid",IF(D146<TODAY(),"Overdue","Open"))) ->  | I146: =IF(OR(D146="",G146=0),0,MAX(TODAY()-D146,0)) -> 0
G147: =IF(E147="","",MAX(E147-F147,0)) ->  | H147: =IF(E147="","",IF(G147=0,"Paid",IF(D147<TODAY(),"Overdue","Open"))) ->  | I147: =IF(OR(D147="",G147=0),0,MAX(TODAY()-D147,0)) -> 0
G148: =IF(E148="","",MAX(E148-F148,0)) ->  | H148: =IF(E148="","",IF(G148=0,"Paid",IF(D148<TODAY(),"Overdue","Open"))) ->  | I148: =IF(OR(D148="",G148=0),0,MAX(TODAY()-D148,0)) -> 0
G149: =IF(E149="","",MAX(E149-F149,0)) ->  | H149: =IF(E149="","",IF(G149=0,"Paid",IF(D149<TODAY(),"Overdue","Open"))) ->  | I149: =IF(OR(D149="",G149=0),0,MAX(TODAY()-D149,0)) -> 0
G150: =IF(E150="","",MAX(E150-F150,0)) ->  | H150: =IF(E150="","",IF(G150=0,"Paid",IF(D150<TODAY(),"Overdue","Open"))) ->  | I150: =IF(OR(D150="",G150=0),0,MAX(TODAY()-D150,0)) -> 0
G151: =IF(E151="","",MAX(E151-F151,0)) ->  | H151: =IF(E151="","",IF(G151=0,"Paid",IF(D151<TODAY(),"Overdue","Open"))) ->  | I151: =IF(OR(D151="",G151=0),0,MAX(TODAY()-D151,0)) -> 0
G152: =IF(E152="","",MAX(E152-F152,0)) ->  | H152: =IF(E152="","",IF(G152=0,"Paid",IF(D152<TODAY(),"Overdue","Open"))) ->  | I152: =IF(OR(D152="",G152=0),0,MAX(TODAY()-D152,0)) -> 0
G153: =IF(E153="","",MAX(E153-F153,0)) ->  | H153: =IF(E153="","",IF(G153=0,"Paid",IF(D153<TODAY(),"Overdue","Open"))) ->  | I153: =IF(OR(D153="",G153=0),0,MAX(TODAY()-D153,0)) -> 0
G154: =IF(E154="","",MAX(E154-F154,0)) ->  | H154: =IF(E154="","",IF(G154=0,"Paid",IF(D154<TODAY(),"Overdue","Open"))) ->  | I154: =IF(OR(D154="",G154=0),0,MAX(TODAY()-D154,0)) -> 0
G155: =IF(E155="","",MAX(E155-F155,0)) ->  | H155: =IF(E155="","",IF(G155=0,"Paid",IF(D155<TODAY(),"Overdue","Open"))) ->  | I155: =IF(OR(D155="",G155=0),0,MAX(TODAY()-D155,0)) -> 0
G156: =IF(E156="","",MAX(E156-F156,0)) ->  | H156: =IF(E156="","",IF(G156=0,"Paid",IF(D156<TODAY(),"Overdue","Open"))) ->  | I156: =IF(OR(D156="",G156=0),0,MAX(TODAY()-D156,0)) -> 0
G157: =IF(E157="","",MAX(E157-F157,0)) ->  | H157: =IF(E157="","",IF(G157=0,"Paid",IF(D157<TODAY(),"Overdue","Open"))) ->  | I157: =IF(OR(D157="",G157=0),0,MAX(TODAY()-D157,0)) -> 0
G158: =IF(E158="","",MAX(E158-F158,0)) ->  | H158: =IF(E158="","",IF(G158=0,"Paid",IF(D158<TODAY(),"Overdue","Open"))) ->  | I158: =IF(OR(D158="",G158=0),0,MAX(TODAY()-D158,0)) -> 0
G159: =IF(E159="","",MAX(E159-F159,0)) ->  | H159: =IF(E159="","",IF(G159=0,"Paid",IF(D159<TODAY(),"Overdue","Open"))) ->  | I159: =IF(OR(D159="",G159=0),0,MAX(TODAY()-D159,0)) -> 0
G160: =IF(E160="","",MAX(E160-F160,0)) ->  | H160: =IF(E160="","",IF(G160=0,"Paid",IF(D160<TODAY(),"Overdue","Open"))) ->  | I160: =IF(OR(D160="",G160=0),0,MAX(TODAY()-D160,0)) -> 0
G161: =IF(E161="","",MAX(E161-F161,0)) ->  | H161: =IF(E161="","",IF(G161=0,"Paid",IF(D161<TODAY(),"Overdue","Open"))) ->  | I161: =IF(OR(D161="",G161=0),0,MAX(TODAY()-D161,0)) -> 0
G162: =IF(E162="","",MAX(E162-F162,0)) ->  | H162: =IF(E162="","",IF(G162=0,"Paid",IF(D162<TODAY(),"Overdue","Open"))) ->  | I162: =IF(OR(D162="",G162=0),0,MAX(TODAY()-D162,0)) -> 0
G163: =IF(E163="","",MAX(E163-F163,0)) ->  | H163: =IF(E163="","",IF(G163=0,"Paid",IF(D163<TODAY(),"Overdue","Open"))) ->  | I163: =IF(OR(D163="",G163=0),0,MAX(TODAY()-D163,0)) -> 0
G164: =IF(E164="","",MAX(E164-F164,0)) ->  | H164: =IF(E164="","",IF(G164=0,"Paid",IF(D164<TODAY(),"Overdue","Open"))) ->  | I164: =IF(OR(D164="",G164=0),0,MAX(TODAY()-D164,0)) -> 0
G165: =IF(E165="","",MAX(E165-F165,0)) ->  | H165: =IF(E165="","",IF(G165=0,"Paid",IF(D165<TODAY(),"Overdue","Open"))) ->  | I165: =IF(OR(D165="",G165=0),0,MAX(TODAY()-D165,0)) -> 0
G166: =IF(E166="","",MAX(E166-F166,0)) ->  | H166: =IF(E166="","",IF(G166=0,"Paid",IF(D166<TODAY(),"Overdue","Open"))) ->  | I166: =IF(OR(D166="",G166=0),0,MAX(TODAY()-D166,0)) -> 0
G167: =IF(E167="","",MAX(E167-F167,0)) ->  | H167: =IF(E167="","",IF(G167=0,"Paid",IF(D167<TODAY(),"Overdue","Open"))) ->  | I167: =IF(OR(D167="",G167=0),0,MAX(TODAY()-D167,0)) -> 0
G168: =IF(E168="","",MAX(E168-F168,0)) ->  | H168: =IF(E168="","",IF(G168=0,"Paid",IF(D168<TODAY(),"Overdue","Open"))) ->  | I168: =IF(OR(D168="",G168=0),0,MAX(TODAY()-D168,0)) -> 0
G169: =IF(E169="","",MAX(E169-F169,0)) ->  | H169: =IF(E169="","",IF(G169=0,"Paid",IF(D169<TODAY(),"Overdue","Open"))) ->  | I169: =IF(OR(D169="",G169=0),0,MAX(TODAY()-D169,0)) -> 0
G170: =IF(E170="","",MAX(E170-F170,0)) ->  | H170: =IF(E170="","",IF(G170=0,"Paid",IF(D170<TODAY(),"Overdue","Open"))) ->  | I170: =IF(OR(D170="",G170=0),0,MAX(TODAY()-D170,0)) -> 0
G171: =IF(E171="","",MAX(E171-F171,0)) ->  | H171: =IF(E171="","",IF(G171=0,"Paid",IF(D171<TODAY(),"Overdue","Open"))) ->  | I171: =IF(OR(D171="",G171=0),0,MAX(TODAY()-D171,0)) -> 0
G172: =IF(E172="","",MAX(E172-F172,0)) ->  | H172: =IF(E172="","",IF(G172=0,"Paid",IF(D172<TODAY(),"Overdue","Open"))) ->  | I172: =IF(OR(D172="",G172=0),0,MAX(TODAY()-D172,0)) -> 0
G173: =IF(E173="","",MAX(E173-F173,0)) ->  | H173: =IF(E173="","",IF(G173=0,"Paid",IF(D173<TODAY(),"Overdue","Open"))) ->  | I173: =IF(OR(D173="",G173=0),0,MAX(TODAY()-D173,0)) -> 0
G174: =IF(E174="","",MAX(E174-F174,0)) ->  | H174: =IF(E174="","",IF(G174=0,"Paid",IF(D174<TODAY(),"Overdue","Open"))) ->  | I174: =IF(OR(D174="",G174=0),0,MAX(TODAY()-D174,0)) -> 0
G175: =IF(E175="","",MAX(E175-F175,0)) ->  | H175: =IF(E175="","",IF(G175=0,"Paid",IF(D175<TODAY(),"Overdue","Open"))) ->  | I175: =IF(OR(D175="",G175=0),0,MAX(TODAY()-D175,0)) -> 0
G176: =IF(E176="","",MAX(E176-F176,0)) ->  | H176: =IF(E176="","",IF(G176=0,"Paid",IF(D176<TODAY(),"Overdue","Open"))) ->  | I176: =IF(OR(D176="",G176=0),0,MAX(TODAY()-D176,0)) -> 0
G177: =IF(E177="","",MAX(E177-F177,0)) ->  | H177: =IF(E177="","",IF(G177=0,"Paid",IF(D177<TODAY(),"Overdue","Open"))) ->  | I177: =IF(OR(D177="",G177=0),0,MAX(TODAY()-D177,0)) -> 0
G178: =IF(E178="","",MAX(E178-F178,0)) ->  | H178: =IF(E178="","",IF(G178=0,"Paid",IF(D178<TODAY(),"Overdue","Open"))) ->  | I178: =IF(OR(D178="",G178=0),0,MAX(TODAY()-D178,0)) -> 0
G179: =IF(E179="","",MAX(E179-F179,0)) ->  | H179: =IF(E179="","",IF(G179=0,"Paid",IF(D179<TODAY(),"Overdue","Open"))) ->  | I179: =IF(OR(D179="",G179=0),0,MAX(TODAY()-D179,0)) -> 0
G180: =IF(E180="","",MAX(E180-F180,0)) ->  | H180: =IF(E180="","",IF(G180=0,"Paid",IF(D180<TODAY(),"Overdue","Open"))) ->  | I180: =IF(OR(D180="",G180=0),0,MAX(TODAY()-D180,0)) -> 0
G181: =IF(E181="","",MAX(E181-F181,0)) ->  | H181: =IF(E181="","",IF(G181=0,"Paid",IF(D181<TODAY(),"Overdue","Open"))) ->  | I181: =IF(OR(D181="",G181=0),0,MAX(TODAY()-D181,0)) -> 0
G182: =IF(E182="","",MAX(E182-F182,0)) ->  | H182: =IF(E182="","",IF(G182=0,"Paid",IF(D182<TODAY(),"Overdue","Open"))) ->  | I182: =IF(OR(D182="",G182=0),0,MAX(TODAY()-D182,0)) -> 0
G183: =IF(E183="","",MAX(E183-F183,0)) ->  | H183: =IF(E183="","",IF(G183=0,"Paid",IF(D183<TODAY(),"Overdue","Open"))) ->  | I183: =IF(OR(D183="",G183=0),0,MAX(TODAY()-D183,0)) -> 0
G184: =IF(E184="","",MAX(E184-F184,0)) ->  | H184: =IF(E184="","",IF(G184=0,"Paid",IF(D184<TODAY(),"Overdue","Open"))) ->  | I184: =IF(OR(D184="",G184=0),0,MAX(TODAY()-D184,0)) -> 0
G185: =IF(E185="","",MAX(E185-F185,0)) ->  | H185: =IF(E185="","",IF(G185=0,"Paid",IF(D185<TODAY(),"Overdue","Open"))) ->  | I185: =IF(OR(D185="",G185=0),0,MAX(TODAY()-D185,0)) -> 0
G186: =IF(E186="","",MAX(E186-F186,0)) ->  | H186: =IF(E186="","",IF(G186=0,"Paid",IF(D186<TODAY(),"Overdue","Open"))) ->  | I186: =IF(OR(D186="",G186=0),0,MAX(TODAY()-D186,0)) -> 0
G187: =IF(E187="","",MAX(E187-F187,0)) ->  | H187: =IF(E187="","",IF(G187=0,"Paid",IF(D187<TODAY(),"Overdue","Open"))) ->  | I187: =IF(OR(D187="",G187=0),0,MAX(TODAY()-D187,0)) -> 0
G188: =IF(E188="","",MAX(E188-F188,0)) ->  | H188: =IF(E188="","",IF(G188=0,"Paid",IF(D188<TODAY(),"Overdue","Open"))) ->  | I188: =IF(OR(D188="",G188=0),0,MAX(TODAY()-D188,0)) -> 0
G189: =IF(E189="","",MAX(E189-F189,0)) ->  | H189: =IF(E189="","",IF(G189=0,"Paid",IF(D189<TODAY(),"Overdue","Open"))) ->  | I189: =IF(OR(D189="",G189=0),0,MAX(TODAY()-D189,0)) -> 0
G190: =IF(E190="","",MAX(E190-F190,0)) ->  | H190: =IF(E190="","",IF(G190=0,"Paid",IF(D190<TODAY(),"Overdue","Open"))) ->  | I190: =IF(OR(D190="",G190=0),0,MAX(TODAY()-D190,0)) -> 0
G191: =IF(E191="","",MAX(E191-F191,0)) ->  | H191: =IF(E191="","",IF(G191=0,"Paid",IF(D191<TODAY(),"Overdue","Open"))) ->  | I191: =IF(OR(D191="",G191=0),0,MAX(TODAY()-D191,0)) -> 0
G192: =IF(E192="","",MAX(E192-F192,0)) ->  | H192: =IF(E192="","",IF(G192=0,"Paid",IF(D192<TODAY(),"Overdue","Open"))) ->  | I192: =IF(OR(D192="",G192=0),0,MAX(TODAY()-D192,0)) -> 0
G193: =IF(E193="","",MAX(E193-F193,0)) ->  | H193: =IF(E193="","",IF(G193=0,"Paid",IF(D193<TODAY(),"Overdue","Open"))) ->  | I193: =IF(OR(D193="",G193=0),0,MAX(TODAY()-D193,0)) -> 0
G194: =IF(E194="","",MAX(E194-F194,0)) ->  | H194: =IF(E194="","",IF(G194=0,"Paid",IF(D194<TODAY(),"Overdue","Open"))) ->  | I194: =IF(OR(D194="",G194=0),0,MAX(TODAY()-D194,0)) -> 0
G195: =IF(E195="","",MAX(E195-F195,0)) ->  | H195: =IF(E195="","",IF(G195=0,"Paid",IF(D195<TODAY(),"Overdue","Open"))) ->  | I195: =IF(OR(D195="",G195=0),0,MAX(TODAY()-D195,0)) -> 0
G196: =IF(E196="","",MAX(E196-F196,0)) ->  | H196: =IF(E196="","",IF(G196=0,"Paid",IF(D196<TODAY(),"Overdue","Open"))) ->  | I196: =IF(OR(D196="",G196=0),0,MAX(TODAY()-D196,0)) -> 0
G197: =IF(E197="","",MAX(E197-F197,0)) ->  | H197: =IF(E197="","",IF(G197=0,"Paid",IF(D197<TODAY(),"Overdue","Open"))) ->  | I197: =IF(OR(D197="",G197=0),0,MAX(TODAY()-D197,0)) -> 0
G198: =IF(E198="","",MAX(E198-F198,0)) ->  | H198: =IF(E198="","",IF(G198=0,"Paid",IF(D198<TODAY(),"Overdue","Open"))) ->  | I198: =IF(OR(D198="",G198=0),0,MAX(TODAY()-D198,0)) -> 0
G199: =IF(E199="","",MAX(E199-F199,0)) ->  | H199: =IF(E199="","",IF(G199=0,"Paid",IF(D199<TODAY(),"Overdue","Open"))) ->  | I199: =IF(OR(D199="",G199=0),0,MAX(TODAY()-D199,0)) -> 0
G200: =IF(E200="","",MAX(E200-F200,0)) ->  | H200: =IF(E200="","",IF(G200=0,"Paid",IF(D200<TODAY(),"Overdue","Open"))) ->  | I200: =IF(OR(D200="",G200=0),0,MAX(TODAY()-D200,0)) -> 0
G201: =IF(E201="","",MAX(E201-F201,0)) ->  | H201: =IF(E201="","",IF(G201=0,"Paid",IF(D201<TODAY(),"Overdue","Open"))) ->  | I201: =IF(OR(D201="",G201=0),0,MAX(TODAY()-D201,0)) -> 0
G202: =IF(E202="","",MAX(E202-F202,0)) ->  | H202: =IF(E202="","",IF(G202=0,"Paid",IF(D202<TODAY(),"Overdue","Open"))) ->  | I202: =IF(OR(D202="",G202=0),0,MAX(TODAY()-D202,0)) -> 0
... 3 more rows

Sheet CASH FLOW
A1: 12-MONTH CASH FLOW | B1: 12-MONTH CASH FLOW | C1: 12-MONTH CASH FLOW | D1: 12-MONTH CASH FLOW | E1: 12-MONTH CASH FLOW
A2: Monthly cash in, cash out, and ending balance update from your trackers. | B2: Monthly cash in, cash out, and ending balance update from your trackers. | C2: Monthly cash in, cash out, and ending balance update from your trackers. | D2: Monthly cash in, cash out, and ending balance update from your trackers. | E2: Monthly cash in, cash out, and ending balance update from your trackers. | F2: Monthly cash in, cash out, and ending balance update from your trackers. | G2: Monthly cash in, cash out, and ending balance update from your trackers. | H2: Monthly cash in, cash out, and ending balance update from your trackers.
A5: Month | B5: Starting cash | C5: Cash in | D5: Cash out | E5: Ending cash
A6: =DATE('START HERE'!$B$10,1,1) -> 2026-01-01 | B6: ='START HERE'!$B$7 -> $25,000.00 | C6: =SUMIFS('SALES'!$H$6:$H$205,'SALES'!$A$6:$A$205,">="&A6,'SALES'!$A$6:$A$205,"<"&EDATE(A6,1)) -> $3,300.00 | D6: =SUMIFS('EXPENSES'!$F$6:$F$205,'EXPENSES'!$A$6:$A$205,">="&A6,'EXPENSES'!$A$6:$A$205,"<"&EDATE(A6,1)) -> $389.00 | E6: =B6+C6-D6 -> $27,911.00
A7: =EDATE(A6,1) -> 2026-02-01 | B7: =E6 -> $27,911.00 | C7: =SUMIFS('SALES'!$H$6:$H$205,'SALES'!$A$6:$A$205,">="&A7,'SALES'!$A$6:$A$205,"<"&EDATE(A7,1)) -> $2,275.00 | D7: =SUMIFS('EXPENSES'!$F$6:$F$205,'EXPENSES'!$A$6:$A$205,">="&A7,'EXPENSES'!$A$6:$A$205,"<"&EDATE(A7,1)) -> $1,046.00 | E7: =B7+C7-D7 -> $29,140.00
A8: =EDATE(A7,1) -> 2026-03-01 | B8: =E7 -> $29,140.00 | C8: =SUMIFS('SALES'!$H$6:$H$205,'SALES'!$A$6:$A$205,">="&A8,'SALES'!$A$6:$A$205,"<"&EDATE(A8,1)) -> $2,225.00 | D8: =SUMIFS('EXPENSES'!$F$6:$F$205,'EXPENSES'!$A$6:$A$205,">="&A8,'EXPENSES'!$A$6:$A$205,"<"&EDATE(A8,1)) -> $940.00 | E8: =B8+C8-D8 -> $30,425.00
A9: =EDATE(A8,1) -> 2026-04-01 | B9: =E8 -> $30,425.00 | C9: =SUMIFS('SALES'!$H$6:$H$205,'SALES'!$A$6:$A$205,">="&A9,'SALES'!$A$6:$A$205,"<"&EDATE(A9,1)) -> $3,500.00 | D9: =SUMIFS('EXPENSES'!$F$6:$F$205,'EXPENSES'!$A$6:$A$205,">="&A9,'EXPENSES'!$A$6:$A$205,"<"&EDATE(A9,1)) -> $1,550.00 | E9: =B9+C9-D9 -> $32,375.00
A10: =EDATE(A9,1) -> 2026-05-01 | B10: =E9 -> $32,375.00 | C10: =SUMIFS('SALES'!$H$6:$H$205,'SALES'!$A$6:$A$205,">="&A10,'SALES'!$A$6:$A$205,"<"&EDATE(A10,1)) -> $2,450.00 | D10: =SUMIFS('EXPENSES'!$F$6:$F$205,'EXPENSES'!$A$6:$A$205,">="&A10,'EXPENSES'!$A$6:$A$205,"<"&EDATE(A10,1)) -> $1,325.00 | E10: =B10+C10-D10 -> $33,500.00
A11: =EDATE(A10,1) -> 2026-06-01 | B11: =E10 -> $33,500.00 | C11: =SUMIFS('SALES'!$H$6:$H$205,'SALES'!$A$6:$A$205,">="&A11,'SALES'!$A$6:$A$205,"<"&EDATE(A11,1)) -> $3,575.00 | D11: =SUMIFS('EXPENSES'!$F$6:$F$205,'EXPENSES'!$A$6:$A$205,">="&A11,'EXPENSES'!$A$6:$A$205,"<"&EDATE(A11,1)) -> $1,085.00 | E11: =B11+C11-D11 -> $35,990.00
A12: =EDATE(A11,1) -> 2026-07-01 | B12: =E11 -> $35,990.00 | C12: =SUMIFS('SALES'!$H$6:$H$205,'SALES'!$A$6:$A$205,">="&A12,'SALES'!$A$6:$A$205,"<"&EDATE(A12,1)) -> 0 | D12: =SUMIFS('EXPENSES'!$F$6:$F$205,'EXPENSES'!$A$6:$A$205,">="&A12,'EXPENSES'!$A$6:$A$205,"<"&EDATE(A12,1)) -> 0 | E12: =B12+C12-D12 -> $35,990.00
A13: =EDATE(A12,1) -> 2026-08-01 | B13: =E12 -> $35,990.00 | C13: =SUMIFS('SALES'!$H$6:$H$205,'SALES'!$A$6:$A$205,">="&A13,'SALES'!$A$6:$A$205,"<"&EDATE(A13,1)) -> 0 | D13: =SUMIFS('EXPENSES'!$F$6:$F$205,'EXPENSES'!$A$6:$A$205,">="&A13,'EXPENSES'!$A$6:$A$205,"<"&EDATE(A13,1)) -> 0 | E13: =B13+C13-D13 -> $35,990.00
A14: =EDATE(A13,1) -> 2026-09-01 | B14: =E13 -> $35,990.00 | C14: =SUMIFS('SALES'!$H$6:$H$205,'SALES'!$A$6:$A$205,">="&A14,'SALES'!$A$6:$A$205,"<"&EDATE(A14,1)) -> 0 | D14: =SUMIFS('EXPENSES'!$F$6:$F$205,'EXPENSES'!$A$6:$A$205,">="&A14,'EXPENSES'!$A$6:$A$205,"<"&EDATE(A14,1)) -> 0 | E14: =B14+C14-D14 -> $35,990.00
A15: =EDATE(A14,1) -> 2026-10-01 | B15: =E14 -> $35,990.00 | C15: =SUMIFS('SALES'!$H$6:$H$205,'SALES'!$A$6:$A$205,">="&A15,'SALES'!$A$6:$A$205,"<"&EDATE(A15,1)) -> 0 | D15: =SUMIFS('EXPENSES'!$F$6:$F$205,'EXPENSES'!$A$6:$A$205,">="&A15,'EXPENSES'!$A$6:$A$205,"<"&EDATE(A15,1)) -> 0 | E15: =B15+C15-D15 -> $35,990.00
A16: =EDATE(A15,1) -> 2026-11-01 | B16: =E15 -> $35,990.00 | C16: =SUMIFS('SALES'!$H$6:$H$205,'SALES'!$A$6:$A$205,">="&A16,'SALES'!$A$6:$A$205,"<"&EDATE(A16,1)) -> 0 | D16: =SUMIFS('EXPENSES'!$F$6:$F$205,'EXPENSES'!$A$6:$A$205,">="&A16,'EXPENSES'!$A$6:$A$205,"<"&EDATE(A16,1)) -> 0 | E16: =B16+C16-D16 -> $35,990.00
A17: =EDATE(A16,1) -> 2026-12-01 | B17: =E16 -> $35,990.00 | C17: =SUMIFS('SALES'!$H$6:$H$205,'SALES'!$A$6:$A$205,">="&A17,'SALES'!$A$6:$A$205,"<"&EDATE(A17,1)) -> 0 | D17: =SUMIFS('EXPENSES'!$F$6:$F$205,'EXPENSES'!$A$6:$A$205,">="&A17,'EXPENSES'!$A$6:$A$205,"<"&EDATE(A17,1)) -> 0 | E17: =B17+C17-D17 -> $35,990.00

Sheet CHECKS
A1: MODEL CHECKS | B1: MODEL CHECKS | C1: MODEL CHECKS | D1: MODEL CHECKS
A2: Review this page before sharing business results. | B2: Review this page before sharing business results. | C2: Review this page before sharing business results. | D2: Review this page before sharing business results. | E2: Review this page before sharing business results. | F2: Review this page before sharing business results. | G2: Review this page before sharing business results. | H2: Review this page before sharing business results.
A4: MODEL STATUS | B4: =IF(COUNTIF(B7:B10,"FAIL")=0,"PASS","FAIL") -> PASS
A6: Check | B6: Status | C6: Delta | D6: Where to fix
A7: Cash flow roll-forward | B7: =IF(ABS('CASH FLOW'!E17-('START HERE'!B7+SUM('SALES'!H6:H205)-SUM('EXPENSES'!F6:F205)))<0.01,"PASS","FAIL") -> PASS | C7: ='CASH FLOW'!E17-('START HERE'!B7+SUM('SALES'!H6:H205)-SUM('EXPENSES'!F6:F205)) -> 0 | D7: CASH FLOW
A8: Invoice balances nonnegative | B8: =IF(MIN('INVOICES'!G6:G205)>=0,"PASS","FAIL") -> PASS | C8: =MIN('INVOICES'!G6:G205) -> 0 | D8: INVOICES
A9: Starting cash entered | B9: =IF('START HERE'!B7<>"","PASS","FAIL") -> PASS | C9: 0 | D9: START HERE!B7
A10: Reporting year entered | B10: =IF('START HERE'!B10>2000,"PASS","FAIL") -> PASS | C10: 0 | D10: START HERE!B10

Sheet LISTS
A1: LISTS & CATEGORIES | B1: LISTS & CATEGORIES | C1: LISTS & CATEGORIES | D1: LISTS & CATEGORIES
A2: Edit these lists to match your business. | B2: Edit these lists to match your business. | C2: Edit these lists to match your business. | D2: Edit these lists to match your business. | E2: Edit these lists to match your business. | F2: Edit these lists to match your business. | G2: Edit these lists to match your business. | H2: Edit these lists to match your business.
A4: Sales categories | B4: Expense categories | C4: Payment methods | D4: Invoice terms
A5: Services | B5: Advertising | C5: Bank transfer | D5: Due on receipt
A6: Products | B6: Contractors | C6: Cash | D6: Net 7
A7: Consulting | B7: Equipment | C7: Check | D7: Net 15
A8: Subscriptions | B8: Insurance | C8: Credit card | D8: Net 30
A9: Training | B9: Meals | C9: Debit card | D9: Net 45
A10: Licensing | B10: Office | C10: Digital wallet | D10: Net 60
A11: Other | B11: Professional fees | C11: Other
B12: Rent
B13: Software
B14: Travel
